fUSD/lending_fUSD_20260315
["ID","MTS","AMOUNT","RATE_DAILY","PERIOD"]
[408396391,1773565838742,-504.71895512,0.00013103,2]
[408396392,1773565838752,-504.71895512,0.00013103,2]
[408396393,1773565838762,-504.71895512,0.00013103,2]
[408396394,1773565838771,-504.71895512,0.00013103,2]
[408396395,1773565838780,-504.71895512,0.00013103,2]
[408396396,1773565838790,-504.71895512,0.00013103,2]
[408396397,1773565838806,-504.71895512,0.00013103,2]
[408396398,1773565838815,-504.71895512,0.00013103,2]
[408396399,1773565838825,-504.71895512,0.00013103,2]
[408396400,1773565838834,-504.71895512,0.00013103,2]
[408396401,1773565838844,-504.71895512,0.00013103,2]
[408396402,1773565838854,-504.71895512,0.00013103,2]
[408396403,1773565838863,-504.71895512,0.00013103,2]
[408396404,1773565838874,-503.35484984,0.00013103,2]
[408396405,1773565838883,-503.35484984,0.00013103,2]
[408396406,1773565838893,-503.35484984,0.00013103,2]
[408396407,1773565838903,-503.35484984,0.00013103,2]
[408396408,1773565838912,-503.35484984,0.00013103,2]
[408396409,1773565838922,-503.35484984,0.00013103,2]
[408396410,1773565838932,-503.35484984,0.00013103,2]
[408396411,1773565838941,-503.35484984,0.00013103,2]
[408396412,1773565838951,-503.35484984,0.00013103,2]
[408396413,1773565838961,-503.35484984,0.00013103,2]
[408396414,1773565838970,-503.35484984,0.00013103,2]
[408396415,1773565838979,-503.35484984,0.00013103,2]
[408396416,1773565838989,-503.35484984,0.00013103,2]
[408396417,1773565838999,-503.35484984,0.00013103,2]
[408396418,1773565839008,-503.35484984,0.00013103,2]
[408396419,1773565839017,-503.35484984,0.00013103,2]
[408396420,1773565839027,-503.35484984,0.00013103,2]
[408396421,1773565839036,-503.35484984,0.00013103,2]
[408396422,1773565839046,-503.35484984,0.00013103,2]
[408396423,1773565839055,-503.35484984,0.00013103,2]
[408396424,1773565839064,-503.35484984,0.00013103,2]
[408396425,1773565839258,-503.35484984,0.00013103,2]
[408396426,1773565839268,-503.35484984,0.00013103,2]
[408396427,1773565839278,-503.35484984,0.00013103,2]
[408396428,1773565839287,-503.35484984,0.00013103,2]
[408396429,1773565839296,-503.35484984,0.00013103,2]
[408396430,1773565839305,-503.35484984,0.00013103,2]
[408396431,1773565839315,-503.35484984,0.00013103,2]
[408396432,1773565839324,-503.35484984,0.00013103,2]
[408396433,1773565839333,-503.35484984,0.00013103,2]
[408396434,1773565839342,-503.35484984,0.00013103,2]
[408396435,1773565839351,-505.35228974,0.00013103,2]
[408396436,1773565839360,-505.35228974,0.00013103,2]
[408396437,1773565839370,-505.35228974,0.00013103,2]
[408396438,1773565839380,-505.35228974,0.00013103,2]
[408396439,1773565839391,-505.35228974,0.00013103,2]
[408396440,1773565839400,-505.35228974,0.00013103,2]
[408396441,1773565839410,-505.35228974,0.00013103,2]
[408396442,1773565839419,-500.0,0.00013173,2]
[408396444,1773565839429,-500.0,0.00013173,2]
[408396446,1773565839441,-278.069386,0.00013186,2]
[408396448,1773565839450,-500.0,0.00013263,2]
[408396449,1773565839460,-500.0,0.00013263,2]
[408396450,1773565839470,-500.0,0.00013263,2]
[408396451,1773565839479,-500.0,0.00013263,2]
[408396452,1773565839489,-500.0,0.00013263,2]
[408396453,1773565839498,-500.0,0.00013263,2]
[408396454,1773565839508,-500.0,0.00013263,2]
[408396456,1773565839517,-500.0,0.00013263,2]
[408396457,1773565839527,-500.0,0.00013263,2]
[408396458,1773565839536,-500.0,0.00013263,2]
[408396459,1773565839545,-500.0,0.00013263,2]
[408396460,1773565839554,-500.0,0.00013263,2]
[408396461,1773565839564,-500.0,0.00013263,2]
[408396462,1773565839573,-500.0,0.00013263,2]
[408396463,1773565839582,-500.0,0.00013263,2]
[408396465,1773565839592,-500.0,0.00013263,2]
[408396466,1773565839601,-500.0,0.00013263,2]
[408396467,1773565839610,-500.0,0.00013263,2]
[408396468,1773565839620,-500.0,0.00013263,2]
[408396469,1773565839629,-500.0,0.00013263,2]
[408396470,1773565839639,-640.11663207,0.00013263,2]
[408396471,1773565839648,-203.0,0.00013303,2]
[408396472,1773565839658,-500.0,0.00013347,2]
[408396473,1773565839668,-1000.0,0.000135,2]
[408396474,1773565839678,-1899.06875426,0.00013526,2]
[408396475,1773565839687,-2122.99183603,0.00013526,2]
[408396476,1773565839698,-25183.43496706,0.000136,2]
[408396477,1773565839707,-505.3214733,0.00013621,2]
[408396478,1773565839716,-1009.80182332,0.00013621,2]
[408396479,1773565839725,-1000.0,0.00013621,2]
[408396480,1773565839735,-1000.0,0.00013621,2]
[408396481,1773565839745,-1000.0,0.00013621,2]
[408396482,1773565839754,-500.0,0.00013621,2]
[408396483,1773565839763,-200.0,0.00013644,2]
[408396484,1773565839773,-500.0,0.00013698,2]
[408396485,1773565839782,-500.0,0.00013698,2]
[408396486,1773565839791,-500.0,0.00013698,2]
[408396487,1773565839802,-500.0,0.00013698,2]
[408396488,1773565839813,-500.0,0.00013698,2]
[408396489,1773565839822,-500.0,0.00013698,2]
[408396490,1773565839831,-500.0,0.00013698,2]
[408396491,1773565839841,-500.0,0.00013698,2]
[408396492,1773565839850,-500.0,0.00013698,2]
[408396493,1773565839860,-500.0,0.00013698,2]
[408396494,1773565839869,-500.0,0.00013698,2]
[408396495,1773565839881,-515.50222331,0.00013698,2]
[408396496,1773565839891,-500.0,0.00013698,2]
[408396497,1773565839899,-517.20222292,0.00013698,2]
[408396498,1773565839910,-500.0,0.00013698,2]
[408396499,1773565839919,-517.30693522,0.00013698,2]
[408396500,1773565839928,-500.0,0.00013698,2]
[408396501,1773565839937,-500.0,0.00013698,2]
[408396502,1773565839947,-500.0,0.00013698,2]
[408396503,1773565839955,-500.0,0.00013698,2]
[408396504,1773565839965,-500.0,0.00013698,2]
[408396505,1773565839974,-500.0,0.00013698,2]
[408396506,1773565839984,-500.0,0.00013698,2]
[408396507,1773565839993,-500.0,0.00013698,2]
[408396508,1773565840002,-500.0,0.00013698,2]
[408396509,1773565840012,-500.0,0.00013698,2]
[408396510,1773565840023,-500.0,0.00013698,2]
[408396511,1773565840034,-500.0,0.00013698,2]
[408396512,1773565840046,-500.0,0.00013698,2]
[408396513,1773565840056,-535.51183506,0.00013698,2]
[408396514,1773565840066,-500.0,0.00013698,2]
[408396515,1773565840076,-261.45915393,0.00013698,2]
[408396516,1773565840085,-500.0,0.00013698,2]
[408396517,1773565840096,-500.0,0.00013698,2]
[408396518,1773565840105,-500.0,0.00013698,2]
[408396519,1773565840116,-376.74816547,0.00013698,2]
[408396520,1773565840125,-500.0,0.00013698,2]
[408396521,1773565840135,-500.0,0.00013698,2]
[408396522,1773565840146,-500.0,0.00013698,2]
[408396523,1773565840156,-500.0,0.00013698,2]
[408396524,1773565840165,-500.0,0.00013698,2]
[408396525,1773565840174,-500.0,0.00013698,2]
[408396526,1773565840184,-500.0,0.00013698,2]
[408396527,1773565840195,-500.0,0.00013698,2]
[408396528,1773565840204,-500.0,0.00013698,2]
[408396529,1773565840213,-500.0,0.00013698,2]
[408396530,1773565840223,-500.0,0.00013698,2]
[408396531,1773565840233,-500.0,0.00013698,2]
[408396532,1773565840242,-500.0,0.00013698,2]
[408396533,1773565840251,-500.0,0.00013698,2]
[408396534,1773565840261,-500.0,0.00013698,2]
[408396535,1773565840271,-500.0,0.00013698,2]
[408396536,1773565840281,-500.0,0.00013698,2]
[408396537,1773565840292,-500.0,0.00013698,2]
[408396538,1773565840302,-500.0,0.00013698,2]
[408396539,1773565840311,-500.0,0.00013698,2]
[408396540,1773565840322,-500.0,0.00013698,2]
[408396541,1773565840332,-500.0,0.00013698,2]
[408396542,1773565840344,-500.0,0.00013698,2]
[408396543,1773565840353,-500.0,0.00013698,2]
[408396544,1773565840362,-500.0,0.00013698,2]
[408396545,1773565840371,-500.0,0.00013698,2]
[408396546,1773565840381,-500.0,0.00013698,2]
[408396547,1773565840390,-500.0,0.00013698,2]
[408396548,1773565840399,-500.0,0.00013698,2]
[408396549,1773565840409,-500.0,0.00013698,2]
[408396550,1773565840419,-500.0,0.00013698,2]
[408396551,1773565840429,-500.0,0.00013698,2]
[408396552,1773565840439,-500.0,0.00013698,2]
[408396553,1773565840449,-500.0,0.00013698,2]
[408396554,1773565840458,-500.0,0.00013698,2]
[408396555,1773565840467,-500.0,0.00013698,2]
[408396556,1773565840476,-344.38732809,0.00013698,2]
[408396557,1773565840486,-500.0,0.00013698,2]
[408396558,1773565840497,-500.0,0.00013698,2]
[408396559,1773565840506,-500.0,0.00013698,2]
[408396560,1773565840515,-287.82528865,0.00013698,2]
[408396561,1773565840524,-500.0,0.00013698,2]
[408396562,1773565840534,-500.0,0.00013698,2]
[408396563,1773565840543,-579.837854,0.00013698,2]
[408396564,1773565840552,-500.0,0.00013698,2]
[408396565,1773565840561,-500.0,0.00013698,2]
[408396566,1773565840570,-500.0,0.00013698,2]
[408396567,1773565840579,-514.54953026,0.00013698,2]
[408396568,1773565840588,-500.0,0.00013698,2]
[408396569,1773565840597,-297.89846423,0.00013698,2]
[408396570,1773565840607,-500.0,0.00013698,2]
[408396571,1773565840616,-500.0,0.00013698,2]
[408396572,1773565840625,-500.0,0.00013698,2]
[408396573,1773565840634,-507.79083862,0.00013698,2]
[408396574,1773565840643,-500.0,0.00013698,2]
[408396575,1773565840652,-500.0,0.00013698,2]
[408396576,1773565840661,-500.0,0.00013698,2]
[408396577,1773565840671,-500.0,0.00013698,2]
[408396578,1773565840680,-500.0,0.00013698,2]
[408396579,1773565840690,-516.15125572,0.00013698,2]
[408396580,1773565840699,-500.0,0.00013698,2]
[408396581,1773565840708,-500.0,0.00013698,2]
[408396582,1773565840717,-511.1229767,0.00013698,2]
[408396583,1773565840726,-500.0,0.00013698,2]
[408396584,1773565840735,-500.0,0.00013698,2]
[408396585,1773565840744,-500.0,0.00013698,2]
[408396586,1773565840753,-500.0,0.00013698,2]
[408396587,1773565840763,-500.0,0.00013698,2]
[408396588,1773565840772,-500.0,0.00013698,2]
[408396589,1773565840781,-500.0,0.00013698,2]
[408396590,1773565840791,-559.04874654,0.00013698,2]
[408396591,1773565840806,-2753.24,0.00013699,2]
[408396592,1773565840818,-501.32247837,0.00013699,2]
[408396593,1773565840828,-338.89055938,0.00013699,2]
[408396594,1773565840837,-500.0,0.00013699,2]
[408396595,1773565840847,-500.0,0.00013699,2]
[408396596,1773565840856,-500.0,0.00013699,2]
[408396597,1773565840865,-500.77956524,0.00013699,2]
[408396598,1773565840875,-500.0,0.00013699,2]
[408396599,1773565840884,-502.74232996,0.00013699,2]
[408396600,1773565840892,-500.0,0.00013699,2]
[408396601,1773565840902,-331.2186495,0.00013699,2]
[408396602,1773565840911,-160.06205431,0.00013699,2]
[408396603,1773565840920,-500.0,0.00013699,2]
[408396604,1773565840929,-500.42322744,0.00013699,2]
[408396605,1773565840938,-502.23235741,0.00013699,2]
[408396606,1773565840947,-500.0,0.00013699,2]
[408396607,1773565840957,-500.0,0.00013699,2]
[408396608,1773565840967,-500.0,0.00013699,2]
[408396609,1773565840976,-500.0,0.00013699,2]
[408396610,1773565840985,-500.0,0.00013699,2]
[408396611,1773565840995,-1000.0,0.00013721,2]
[408396612,1773565841004,-1000.0,0.00013721,2]
[408396613,1773565841013,-643.0,0.00013727,2]
[408396614,1773565841023,-319.00181675,0.00013727,2]
[408396615,1773565841032,-678.41854131,0.00013769,2]
[408396616,1773565841042,-672.65087444,0.00013769,2]
[408396617,1773565841052,-2000.0,0.00013771,2]
[408396618,1773565841062,-250.0,0.0001386,2]
[408396619,1773565841071,-300.0,0.0001386,2]
[408396620,1773565841081,-300.0,0.0001386,2]
[408396621,1773565841090,-300.0,0.0001386,2]
[408396622,1773565841099,-300.0,0.0001386,2]
[408396623,1773565841107,-300.0,0.0001386,2]
[408396624,1773565841117,-600.0,0.0001386,2]
[408396625,1773565841126,-600.0,0.0001386,2]
[408396626,1773565841135,-600.0,0.0001386,2]
[408396627,1773565841144,-600.0,0.0001386,2]
[408396628,1773565841153,-600.0,0.0001386,2]
[408396629,1773565841162,-500.0,0.0001386,2]
[408396630,1773565841171,-500.0,0.0001386,2]
[408396631,1773565841181,-500.0,0.0001386,2]
[408396632,1773565841189,-5000.0,0.0001386,2]
[408396633,1773565841198,-1238.04284629,0.00013873,2]
[408396634,1773565841207,-216.7537181,0.00013873,2]
[408396635,1773565841217,-265.21078828,0.00013873,2]
[408396636,1773565841226,-559.58,0.0001388,2]
[408396637,1773565841235,-500.0,0.0001397,2]
[408396638,1773565841243,-500.0,0.0001397,2]
[408396639,1773565841252,-500.0,0.0001397,2]
[408396640,1773565841261,-137918.78521915,0.0001397,2]
[408396641,1773565841270,-502.80613265,0.00013973,2]
[408396642,1773565841279,-500.0,0.00013973,2]
[408396643,1773565841288,-501.41774504,0.00013973,2]
[408396644,1773565841297,-1441.42,0.00013993,2]
[408396645,1773565841306,-201.365193,0.00014034,7]
[408396646,1773565841315,-1200.0,0.00014051,2]
[408396647,1773565841324,-420.0,0.00014051,2]
[408396648,1773565841333,-420.0,0.00014051,2]
[408396649,1773565841342,-420.0,0.00014051,2]
[408396650,1773565841351,-203.89137362,0.0001408,2]
[408396651,1773565841361,-1680.0,0.00014091,2]
[408396652,1773565841371,-193.0,0.00014093,2]
[408396653,1773565841381,-250.0,0.00014104,2]
[408396654,1773565841390,-5000.0,0.00014104,2]
[408396655,1773565841399,-157.0,0.00014108,3]
[408396656,1773565841408,-255.0,0.00014108,2]
[408396657,1773565841417,-1500.0,0.00014168,2]
[408396658,1773565841426,-1000.0,0.00014168,2]
[408396659,1773565841435,-500.0,0.00014168,2]
[408396660,1773565841444,-193.643643,0.0001419,2]
[408396661,1773565841454,-200.0,0.00014192,2]
[408396662,1773565841463,-2293.44806772,0.0001421,7]
[408396663,1773565841472,-1002.37855364,0.00014247,2]
[408396664,1773565841481,-1000.0,0.00014247,2]
[408396665,1773565841490,-1000.0,0.00014247,2]
[408396666,1773565841499,-1000.0,0.00014247,2]
[408396667,1773565841508,-1096.97307244,0.00014247,2]
[408396668,1773565841517,-1000.0,0.00014247,2]
[408396669,1773565841527,-905.00050788,0.00014247,2]
[408396670,1773565841536,-1003.99703224,0.00014247,2]
[408396671,1773565841546,-503.80883782,0.00014247,2]
[408396672,1773565841555,-1000.0,0.00014247,2]
[408396673,1773565841565,-1000.0,0.00014247,2]
[408396674,1773565841574,-500.0,0.00014364,3]
[408396675,1773565841583,-163.43,0.00014364,2]
[408396676,1773565841593,-2753.24,0.00014384,2]
[408396677,1773565841602,-25183.43496706,0.00014387,2]
[408396678,1773565841611,-501.20782157,0.00014521,2]
[408396679,1773565841622,-150.0,0.00014543,2]
[408396680,1773565841631,-296.699099,0.00014544,2]
[408396681,1773565841640,-500.0,0.0001468,2]
[408396682,1773565841648,-534.35511804,0.0001468,2]
[408396683,1773565841657,-501.09060044,0.0001468,2]
[408396684,1773565841667,-500.0,0.0001468,2]
[408396685,1773565841676,-500.0,0.0001468,2]
[408396686,1773565841685,-2000.0,0.00014716,2]
[408396687,1773565841693,-500.0,0.00014722,2]
[408396688,1773565841702,-500.0,0.00014722,2]
[408396689,1773565841711,-502.20696467,0.00014722,2]
[408396690,1773565841721,-200.0,0.0001474,2]
[408396691,1773565841730,-500.0,0.00014795,2]
[408396692,1773565841739,-606.60583664,0.00014795,2]
[408396693,1773565841747,-482.7910397,0.00014795,2]
[408396694,1773565841757,-974.77138768,0.00014795,2]
[408396695,1773565841765,-1500.0,0.00014795,2]
[408396696,1773565841774,-500.0,0.00014795,2]
[408396697,1773565841783,-171.96548914,0.000149,2]
[408396698,1773565841793,-171.96548913,0.000149,2]
[408396699,1773565841805,-500.0,0.00014999,2]
[408396700,1773565841815,-250.0,0.00015,2]
[408396701,1773565841823,-2062.08797356,0.00015,2]
[408396702,1773565841832,-3179.30155397,0.00015,14]
[408396703,1773565841842,-8027.73774163,0.00015,2]
[408396704,1773565841852,-2753.24,0.00015068,2]
[408396705,1773565841861,-251.89870418,0.00015071,2]
[408396706,1773565841870,-3406.124251,0.00015119,2]
[408396707,1773565841881,-25183.43496706,0.00015175,2]
[408396708,1773565841890,-350.81480094,0.00015228,2]
[408396709,1773565841899,-501.00594365,0.00015228,2]
[408396710,1773565841907,-1000.0,0.00015228,2]
[408396711,1773565841916,-1295.71924551,0.00015264,2]
[408396712,1773565841925,-500.0,0.0001527,2]
[408396713,1773565841936,-503.2846823,0.0001527,2]
[408396714,1773565841945,-200.0,0.00015288,2]
[408396715,1773565841955,-1517.64,0.000153,2]
[408396716,1773565841964,-2000.0,0.00015301,2]
[408396717,1773565841974,-433.0,0.00015304,2]
[408396718,1773565841983,-2000.0,0.00015342,2]
[408396719,1773565841992,-511.28109922,0.000154,2]
[408396720,1773565842006,-587.0,0.00015413,2]
[408396721,1773565842017,-587.0,0.00015413,2]
[408396722,1773565842027,-587.0,0.00015413,2]
[408396723,1773565842036,-2351.0,0.00015501,2]
[408396724,1773565842049,-1441.42,0.00015548,2]
[408396725,1773565842059,-494.17322621,0.00015753,2]
[408396726,1773565842068,-2753.24,0.00015753,2]
[408396727,1773565842078,-244.75125332,0.00015776,2]
[408396728,1773565842087,-163.43,0.00015801,2]
[408396729,1773565842096,-200.0,0.00015836,2]
[408396730,1773565842106,-500.0,0.0001589,2]
[408396731,1773565842116,-150.0,0.000159,2]
[408396732,1773565842125,-150.0,0.000159,2]
[408396733,1773565842135,-150.0,0.000159,2]
[408396734,1773565842145,-150.0,0.000159,2]
[408396735,1773565842156,-150.0,0.000159,2]
[408396736,1773565842165,-157.0,0.00015953,3]
[408396738,1773565842175,-5000.0,0.0001596,2]
[408396739,1773565842185,-25183.43496706,0.00015962,2]
[408396740,1773565842194,-5465.59101331,0.00016,2]
[408396741,1773565842207,-5819.75321781,0.000162,5]
[408396742,1773565842217,-200.0,0.0001634,2]
[408396743,1773565842227,-200.0,0.00016384,2]
[408396745,1773565842404,-150.0,0.000164,2]
[408396747,1773565842414,-213.0,0.000164,2]
[408396748,1773565842423,-302.46,0.000164,2]
[408396750,1773565842433,-353.5768258,0.000164,2]
[408396752,1773565842442,-201.94987361,0.00016438,2]
[408396753,1773565842452,-150.0,0.00016438,2]
[408396754,1773565842461,-2753.24,0.00016438,2]
[408396755,1773565842470,-176.75232998,0.00016487,2]
[408396756,1773565842480,-150.0,0.00016493,2]
[408396758,1773565842489,-956.0,0.00016545,2]
[408396760,1773565842498,-150.0,0.00016548,2]
[408396761,1773565842507,-469.87233333,0.00016548,2]
[408396762,1773565842517,-160.0,0.00016551,2]
[408396763,1773565842527,-956.0,0.00016575,2]
[408396764,1773565842539,-362.78151867,0.000166,2]
[408396765,1773565842550,-153.80287197,0.00016602,2]
[408396766,1773565842559,-736.0,0.00016605,2]
[408396767,1773565842568,-250.0,0.00016649,2]
[408396768,1773565842578,-160.0,0.0001669,3]
[408396769,1773565842588,-166.66,0.00016712,2]
[408396770,1773565842598,-2000.0,0.00016831,2]
[408396771,1773565842608,-308.15210792,0.00016832,2]
[408396772,1773565842617,-300.0,0.00016834,2]
[408396773,1773565842626,-300.0,0.00016834,2]
[408396774,1773565842635,-251.706492,0.00016841,7]
[408396775,1773565842644,-501.04802753,0.00016894,2]
[408396776,1773565842653,-4800.0,0.000169,6]
[408396777,1773565842663,-823.0,0.00016906,2]
[408396778,1773565842672,-345.0,0.00016906,2]
[408396779,1773565842681,-823.0,0.00016906,2]
[408396780,1773565842691,-200.0,0.00016932,2]
[408396781,1773565842700,-956.0,0.00016963,2]
[408396782,1773565842709,-680.41877614,0.0001699,2]
[408396783,1773565842717,-310.34047913,0.00016999,2]
[408396784,1773565842727,-500.0,0.00016999,2]
[408396785,1773565842736,-500.0,0.00016999,2]
[408396786,1773565842746,-500.0,0.00016999,2]
[408396787,1773565842755,-300.0,0.00016999,2]
[408396788,1773565842765,-150.0,0.00017,7]
[408396789,1773565842775,-300.0,0.00017,2]
[408396790,1773565842785,-630685.64452808,0.00017,2]
[408396791,1773565842794,-518.0,0.00017,2]
[408396792,1773565842808,-151.0,0.00017,2]
[408396793,1773565842817,-151.0,0.00017,2]
[408396794,1773565842826,-5000.0,0.00017,2]
[408396795,1773565842836,-3781.835403,0.00017,2]
[408396796,1773565842846,-1559.44679366,0.00017047,2]
[408396797,1773565842855,-3292.0,0.00017051,2]
[408396798,1773565842864,-1441.42,0.00017103,2]
[408396799,1773565842876,-956.0,0.00017109,2]
[408396800,1773565842886,-956.0,0.00017127,2]
[408396801,1773565842895,-500.0,0.00017146,2]
[408396802,1773565842905,-500.0,0.00017146,2]
[408396803,1773565842914,-500.0,0.00017146,2]
[408396804,1773565842923,-500.0,0.00017146,2]
[408396805,1773565842933,-500.0,0.00017146,2]
[408396806,1773565842943,-500.0,0.00017147,2]
[408396807,1773565842952,-500.0,0.00017147,2]
[408396808,1773565842962,-500.0,0.00017147,2]
[408396809,1773565842971,-500.0,0.00017147,2]
[408396810,1773565842980,-500.0,0.00017147,2]
[408396811,1773565842990,-500.0,0.00017147,2]
[408396812,1773565842999,-500.0,0.00017147,2]
[408396813,1773565843009,-500.0,0.00017147,2]
[408396814,1773565843019,-500.0,0.00017147,2]
[408396815,1773565843028,-500.0,0.00017147,2]
[408396816,1773565843038,-500.0,0.00017147,2]
[408396817,1773565843047,-500.0,0.00017147,2]
[408396818,1773565843056,-956.0,0.0001715,2]
[408396819,1773565843065,-879.98,0.00017181,2]
[408396820,1773565843075,-956.0,0.00017188,2]
[408396821,1773565843084,-956.0,0.00017195,2]
[408396822,1773565843093,-956.0,0.00017202,2]
[408396823,1773565843103,-163.43,0.00017237,2]
[408396825,1773565843114,-956.0,0.00017244,2]
[408396827,1773565843123,-564.65798041,0.00017272,2]
[408396828,1773565843133,-500.0,0.00017272,2]
[408396829,1773565843144,-198.38986947,0.00017272,2]
[408396830,1773565843154,-5407.0,0.000174,3]
[408396831,1773565843163,-956.0,0.00017432,2]
[408396832,1773565843172,-956.0,0.00017456,2]
[408396833,1773565843181,-200.0,0.0001748,2]
[408396834,1773565843191,-956.0,0.00017502,2]
[408396835,1773565843200,-300.0,0.000176,2]
[408396836,1773565843209,-956.0,0.00017649,2]
[408396837,1773565843220,-433.73231544,0.00017653,2]
[408396838,1773565843230,-956.0,0.0001766,2]
[408396839,1773565843240,-956.0,0.00017695,2]
[408396840,1773565843250,-956.0,0.00017734,2]
[408396841,1773565843260,-4401.99,0.00017746,2]
[408396842,1773565843269,-157.0,0.00017797,3]
[408396844,1773565843279,-5533.0,0.000178,5]
[408396846,1773565843289,-150.0,0.00017808,2]
[408396847,1773565843298,-784.55377187,0.00017808,2]
[408396848,1773565843310,-956.0,0.00017814,2]
[408396849,1773565843319,-150.0,0.00017863,2]
[408396850,1773565843328,-412.8427638,0.000179,2]
[408396851,1773565843337,-412.8427638,0.000179,2]
[408396852,1773565843346,-412.8427638,0.000179,2]
[408396853,1773565843355,-412.8427638,0.000179,2]
[408396854,1773565843365,-158.1686959,0.00017918,2]
[408396855,1773565843374,-956.0,0.00017925,2]
[408396856,1773565843383,-8684.43,0.00017936,2]
[408396857,1773565843393,-956.0,0.00017953,2]
[408396858,1773565843403,-153.56106977,0.00017991,2]
[408396859,1773565843414,-1959.56597553,0.00018,2]
[408396860,1773565843424,-956.0,0.00018008,2]
[408396861,1773565843435,-1064.0,0.00018022,2]
[408396862,1773565843444,-200.0,0.00018028,2]
[408396863,1773565843453,-956.0,0.00018056,2]
[408396864,1773565843463,-956.0,0.00018112,2]
[408396865,1773565843472,-169.5809409,0.0001815,2]
[408396866,1773565843482,-956.0,0.00018186,2]
[408396867,1773565843492,-956.0,0.0001823,2]
[408396868,1773565843503,-2000.0,0.00018361,2]
[408396869,1773565843514,-195.11,0.000184,2]
[408396870,1773565843524,-1466.4303,0.00018528,7]
[408396871,1773565843533,-1152.0,0.00018544,2]
[408396872,1773565843549,-1152.0,0.00018544,2]
[408396873,1773565843558,-202.1313925,0.00018576,2]
[408396874,1773565843567,-500.0,0.000186,2]
[408396875,1773565843576,-500.0,0.000186,2]
[408396876,1773565843586,-500.0,0.000186,2]
[408396877,1773565843596,-500.0,0.000186,2]
[408396878,1773565843605,-500.0,0.000186,2]
[408396879,1773565843614,-500.0,0.000186,2]
[408396880,1773565843624,-500.0,0.000186,2]
[408396881,1773565843633,-700.0,0.000186,2]
[408396882,1773565843642,-500.0,0.000186,2]
[408396883,1773565843651,-500.0,0.000186,2]
[408396884,1773565843661,-500.0,0.000186,2]
[408396885,1773565843670,-500.0,0.000186,2]
[408396886,1773565843680,-500.0,0.000186,2]
[408396887,1773565843689,-500.0,0.000186,2]
[408396888,1773565843698,-500.0,0.000186,2]
[408396889,1773565843707,-500.0,0.000186,2]
[408396890,1773565843717,-500.0,0.000186,2]
[408396891,1773565843726,-500.0,0.000186,2]
[408396892,1773565843735,-864.64014527,0.000186,2]
[408396893,1773565843745,-1441.42,0.00018658,2]
[408396894,1773565843755,-1043.0,0.00018662,2]
[408396895,1773565843765,-163.43,0.00018674,2]
[408396896,1773565843774,-4609.0,0.00018756,2]
[408396897,1773565843783,-13876.9900888,0.00018986,2]
[408396898,1773565843792,-10901.722263,0.00018986,2]
[408396899,1773565843807,-350.0,0.00019,2]
[408396900,1773565843816,-16723.0971258,0.00019015,2]
[408396901,1773565843825,-500.0,0.00019033,2]
[408396902,1773565843835,-500.1490798,0.00019033,2]
[408396903,1773565843845,-555.74644379,0.00019033,2]
[408396904,1773565843855,-496033.3218,0.00019034,2]
[408396905,1773565843864,-151.0,0.00019034,2]
[408396906,1773565843874,-151.0,0.00019034,2]